fUSD/lending_fUSD_20241121
["ID","MTS","AMOUNT","RATE_DAILY","PERIOD"]
[342882136,1732193435106,-3.56120145,0.00038578,2]
[342882197,1732193435719,-3238.89395046,0.00038578,2]
[342882199,1732193435728,-588.04285546,0.00038685,2]
[342882201,1732193435737,-1009.97,0.00038708,2]
[342882203,1732193435747,-165.2,0.00038711,2]
[342882205,1732193435756,-150.0,0.0003874,2]
[342882207,1732193435766,-269.63,0.00038765,2]
[342882209,1732193435775,-269.63,0.00038775,2]
[342882210,1732193435785,-8098.63,0.00038775,2]
[342882211,1732193435794,-9097.93,0.00038775,30]
[342882212,1732193435804,-150.99,0.00038786,2]
[342882213,1732193435813,-269.63,0.00038786,2]
[342882214,1732193435822,-269.63,0.00038796,2]
[342882215,1732193435831,-269.63,0.00038806,2]
[342882216,1732193435841,-269.63,0.00038816,2]
[342882217,1732193435853,-500.0,0.00038819,2]
[342882218,1732193435862,-1359.35,0.00038826,2]
[342882219,1732193435871,-269.63,0.00038826,2]
[342882220,1732193435881,-269.63,0.00038837,2]
[342882221,1732193435891,-269.63,0.00038847,2]
[342882222,1732193435900,-269.63,0.00038857,2]
[342882224,1732193435909,-1000.0,0.00038857,2]
[342882226,1732193435918,-269.63,0.00038867,2]
[342882228,1732193435927,-269.63,0.00038877,2]
[342882230,1732193435937,-555.0,0.00038887,4]
[342882232,1732193435947,-250.0,0.00038887,2]
[342882234,1732193435956,-269.63,0.00038888,2]
[342882236,1732193435966,-269.63,0.00038898,2]
[342882238,1732193435975,-269.63,0.00038908,2]
[342882240,1732193435984,-150.0,0.00038917,2]
[342882242,1732193435993,-269.63,0.00038918,2]
[342882244,1732193436002,-269.63,0.00038928,2]
[342882246,1732193436011,-269.63,0.00038938,2]
[342882248,1732193436020,-269.63,0.00038949,2]
[342882250,1732193436030,-269.63,0.00038959,2]
[342882252,1732193436039,-262.13,0.0003898,2]
[342882254,1732193436051,-5731.32900478,0.0003899,2]
[342882256,1732193436060,-262.13,0.0003899,2]
[342882258,1732193436069,-6018.75952921,0.00039,120]
[342882260,1732193436081,-150.41,0.00039108,2]
[342882262,1732193436090,-190.02,0.00039221,2]
[342882264,1732193436103,-2610.43,0.00039225,2]
[342882266,1732193436113,-1000.0,0.00039238,2]
[342882268,1732193436123,-262.13,0.00039277,2]
[342882269,1732193436132,-250.0,0.00039286,2]
[342882272,1732193436142,-1852.42,0.00039307,2]
[342882274,1732193436151,-202.83,0.00039367,120]
[342882276,1732193436160,-262.13,0.00039457,2]
[342882278,1732193436170,-262.13,0.00039457,2]
[342882280,1732193436179,-262.13,0.00039457,2]
[342882282,1732193436188,-1374.19,0.00039461,2]
[342882284,1732193436198,-262.13,0.00039466,2]
[342882286,1732193436208,-250.0,0.00039467,2]
[342882287,1732193436217,-1000.0,0.00039467,2]
[342882289,1732193436226,-1000.0,0.00039467,2]
[342882291,1732193436236,-1000.0,0.00039467,2]
[342882293,1732193436245,-1000.0,0.00039467,2]
[342882295,1732193436254,-1000.0,0.00039467,2]
[342882297,1732193436264,-1000.0,0.00039467,2]
[342882299,1732193436273,-1000.0,0.00039467,2]
[342882301,1732193436283,-1000.0,0.00039467,2]
[342882303,1732193436292,-1000.0,0.00039467,2]
[342882305,1732193436301,-1000.0,0.00039467,2]
[342882307,1732193436311,-1000.0,0.00039467,2]
[342882309,1732193436320,-1000.0,0.00039467,2]
[342882311,1732193436329,-1000.0,0.00039467,2]
[342882313,1732193436339,-1000.0,0.00039467,2]
[342882315,1732193436350,-1000.0,0.00039467,2]
[342882317,1732193436359,-1000.0,0.00039467,2]
[342882319,1732193436369,-540.84440143,0.00039467,2]
[342882322,1732193436382,-459.15559857,0.00039467,2]
[342882324,1732193436392,-1000.0,0.00039467,2]
[342882325,1732193436401,-686.64730354,0.00039467,2]
[342882340,1732193436529,-313.35269646,0.00039467,2]
[342882342,1732193436538,-1000.0,0.00039467,2]
[342882344,1732193436547,-1000.0,0.00039467,2]
[342882346,1732193436556,-1000.0,0.00039467,2]
[342882348,1732193436565,-1000.0,0.00039467,2]
[342882350,1732193436575,-1000.0,0.00039467,2]
[342882352,1732193436585,-989.82743847,0.00039476,2]
[342882355,1732193436608,-7558.17256153,0.00039476,2]
[342882357,1732193436617,-498.23,0.00039483,120]
[342882359,1732193436627,-262.13,0.0003968,2]
[342882361,1732193436636,-2814.665,0.0003969,2]
[342882363,1732193436645,-262.13,0.0003979,2]
[342882365,1732193436656,-262.13,0.0003979,2]
[342882367,1732193436665,-262.13,0.0003979,2]
[342882369,1732193436674,-262.13,0.0003979,2]
[342882371,1732193436683,-174.662,0.00039799,56]
[342882373,1732193436694,-2039.896,0.00039799,56]
[342882375,1732193436703,-30736.0699,0.000398,2]
[342882377,1732193436712,-262.13,0.0003989,2]
[342882379,1732193436721,-825.19721197,0.000399,15]
[342882386,1732193436783,-5340.5537619,0.000399,15]
[342882389,1732193436795,-2661.8910995,0.000399,15]
[342882502,1732193437771,-731.84333871,0.000399,15]
[342882504,1732193437782,-605.31034939,0.000399,15]
[342882507,1732193437794,-1014.9002075,0.000399,15]
[342882509,1732193437803,-159.51,0.00039978,120]
[342882511,1732193437813,-262.13,0.0003999,30]
[342882513,1732193437822,-262.13,0.0003999,30]
[342882514,1732193437831,-6960.42758518,0.0004,30]
[342882515,1732193437840,-2023.01,0.0004,120]
[342882516,1732193437851,-2000.0,0.0004,2]
[342882517,1732193437861,-2222.93694968,0.0004,120]
[342882518,1732193437876,-3039.46305032,0.0004,120]
[342882519,1732193437886,-262.13,0.0004019,30]
[342882520,1732193437895,-4192.0,0.000402,3]
[342882521,1732193437904,-194.6276439,0.00040312,120]
[342882522,1732193437914,-168.23,0.0004032,2]
[342882523,1732193437923,-262.13,0.00040377,30]
[342882524,1732193437932,-236.88105678,0.00040387,15]
[342882526,1732193437944,-10942.81491218,0.00040387,15]
[342882528,1732193437954,-165.19,0.00040478,2]
[342882530,1732193437963,-262.13,0.00040497,30]
[342882532,1732193437973,-6000.0,0.00040507,2]
[342882534,1732193437983,-1695.98788571,0.00040557,15]
[342882536,1732193437992,-262.13,0.00040647,30]
[342882538,1732193438001,-1129.1724,0.00040656,2]
[342882540,1732193438010,-2023.01,0.00040657,120]
[342882542,1732193438019,-5262.4,0.00040657,120]
[342882544,1732193438028,-204.7615,0.00040666,7]
[342882546,1732193438037,-1000.0,0.0004069,2]
[342882548,1732193438050,-400.0,0.000407,14]
[342882550,1732193438059,-150.0,0.00040709,2]
[342882552,1732193438068,-262.13,0.0004079,30]
[342882554,1732193438078,-800.0,0.000408,14]
[342882556,1732193438088,-4548.80917645,0.00040874,15]
[342882561,1732193438132,-6630.88679251,0.00040874,15]
[342882563,1732193438141,-17887.6633,0.000409,2]
[342882565,1732193438150,-350.658,0.000409,2]
[342882567,1732193438159,-2500.0,0.000409,2]
[342882569,1732193438168,-1200.0,0.000409,14]
[342882571,1732193438177,-470.89955754,0.000409,28]
[342882573,1732193438187,-3000.0,0.0004096,39]
[342882575,1732193438196,-1695.98788565,0.00040971,15]
[342882577,1732193438207,-1000.0,0.00040994,2]
[342882579,1732193438216,-515.06409262,0.00040995,13]
[342882581,1732193438226,-437.70500234,0.00040995,2]
[342882583,1732193438235,-1916.80662709,0.00040998,45]
[342882585,1732193438244,-1000.0,0.00040999,2]
[342882587,1732193438253,-50000.0,0.00041,11]
[342882589,1732193438262,-50000.0,0.00041,21]
[342882591,1732193438271,-50000.0,0.00041,31]
[342882593,1732193438280,-10000.0,0.00041,50]
[342882595,1732193438290,-2076.0,0.00041,117]
[342882597,1732193438299,-176.0,0.00041,14]
[342882599,1732193438308,-598.6,0.00041,120]
[342882601,1732193438317,-150.0,0.00041016,2]
[342882603,1732193438327,-271.70915748,0.0004102,2]
[342882605,1732193438336,-5937.0,0.00041033,2]
[342882607,1732193438346,-150.0,0.00041033,2]
[342882609,1732193438358,-13657.0,0.00041033,2]
[342882611,1732193438367,-1162.0,0.00041033,2]
[342882613,1732193438377,-1093.0,0.00041033,2]
[342882615,1732193438387,-500.0,0.00041073,5]
[342882617,1732193438396,-500.0,0.00041073,5]
[342882619,1732193438406,-230.35668,0.00041088,30]
[342882622,1732193438415,-1010.4078,0.00041094,2]
[342882624,1732193438424,-500.0,0.00041095,18]
[342882625,1732193438434,-500.0,0.00041095,18]
[342882627,1732193438443,-500.18869651,0.00041095,18]
[342882629,1732193438452,-500.0,0.00041095,18]
[342882631,1732193438461,-484.1575613,0.00041095,18]
[342882633,1732193438470,-500.0,0.00041095,18]
[342882636,1732193438480,-500.0,0.00041095,18]
[342882638,1732193438489,-500.0,0.00041095,18]
[342882640,1732193438498,-595.67689036,0.00041095,18]
[342882642,1732193438507,-500.0,0.00041095,18]
[342882643,1732193438516,-500.0,0.00041095,18]
[342882646,1732193438525,-500.0,0.00041095,18]
[342882647,1732193438534,-508.3785511,0.00041095,18]
[342882649,1732193438544,-500.0,0.00041095,7]
[342882651,1732193438553,-505.03265392,0.00041095,18]
[342882653,1732193438562,-555.46436903,0.00041095,18]
[342882655,1732193438571,-500.0,0.00041095,18]
[342882657,1732193438581,-500.0,0.00041095,18]
[342882659,1732193438590,-500.0,0.00041095,18]
[342882661,1732193438601,-418.30223842,0.00041095,18]
[342882663,1732193438610,-500.0,0.00041095,18]
[342882665,1732193438619,-500.0,0.00041095,18]
[342882667,1732193438629,-500.0,0.00041095,18]
[342882669,1732193438638,-500.0,0.00041095,18]
[342882671,1732193438648,-500.0,0.00041095,18]
[342882673,1732193438657,-500.0,0.00041095,18]
[342882675,1732193438666,-500.0,0.00041095,18]
[342882677,1732193438675,-200.0,0.00041095,7]
[342882679,1732193438684,-500.0,0.00041095,18]
[342882681,1732193438693,-500.0,0.00041095,18]
[342882683,1732193438702,-765.59,0.00041095,18]
[342882685,1732193438711,-628.2,0.00041095,18]
[342882687,1732193438720,-816.1,0.00041095,18]
[342882689,1732193438730,-500.0,0.00041095,18]
[342882691,1732193438739,-1310.99,0.00041095,18]
[342882693,1732193438748,-1037.71,0.00041095,18]
[342882695,1732193438757,-1455.15,0.00041095,18]
[342882697,1732193438766,-500.0,0.00041095,18]
[342882699,1732193438775,-500.0,0.00041095,18]
[342882701,1732193438784,-414.93978536,0.00041095,18]
[342882703,1732193438793,-500.0,0.00041095,18]
[342882705,1732193438802,-731.52,0.00041095,18]
[342882707,1732193438811,-500.0,0.00041095,18]
[342882709,1732193438821,-500.0,0.00041095,18]
[342882711,1732193438830,-500.0,0.00041095,18]
[342882713,1732193438839,-1107.864162,0.00041095,18]
[342882715,1732193438848,-184.75393,0.00041095,18]
[342882717,1732193438860,-154.589909,0.00041095,18]
[342882718,1732193438870,-500.0,0.00041095,18]
[342882720,1732193438880,-500.0,0.00041095,18]
[342882723,1732193438889,-1241.3,0.00041095,18]
[342882724,1732193438898,-1088.78,0.00041095,18]
[342882727,1732193438907,-500.0,0.00041095,18]
[342882729,1732193438917,-706.93,0.00041095,18]
[342882731,1732193438926,-500.0,0.00041095,18]
[342882732,1732193438935,-500.0,0.00041095,18]
[342882734,1732193438947,-500.0,0.00041095,18]
[342882736,1732193438956,-629.15337135,0.00041095,18]
[342882738,1732193438965,-500.0,0.00041095,18]
[342882740,1732193438974,-500.0,0.00041095,18]
[342882743,1732193438983,-500.0,0.00041095,18]
[342882745,1732193438992,-500.0,0.00041095,18]
[342882746,1732193439001,-500.0,0.00041095,18]
[342882748,1732193439010,-500.0,0.00041095,18]
[342882751,1732193439020,-500.0,0.00041095,18]
[342882752,1732193439029,-500.0,0.00041095,18]
[342882755,1732193439039,-1196.42,0.00041095,18]
[342882756,1732193439049,-500.0,0.00041095,18]
[342882758,1732193439059,-500.0,0.00041095,18]
[342882760,1732193439068,-233.35979185,0.00041095,18]
[342882763,1732193439079,-500.0,0.00041095,18]
[342882764,1732193439088,-794.11,0.00041095,18]
[342882767,1732193439098,-500.0,0.00041095,18]
[342882768,1732193439109,-2000.0,0.00041095,30]
[342882771,1732193439122,-872.74,0.00041095,18]
[342882773,1732193439131,-500.0,0.00041095,18]
[342882775,1732193439141,-500.0,0.00041095,18]
[342882777,1732193439149,-938.93,0.00041095,18]
[342882779,1732193439158,-1359.5,0.00041095,18]
[342882780,1732193439168,-500.0,0.00041095,18]
[342882783,1732193439178,-500.0,0.00041095,18]
[342882785,1732193439187,-500.0,0.00041095,18]
[342882787,1732193439196,-500.0,0.00041095,18]
[342882788,1732193439205,-500.0,0.00041095,18]
[342882790,1732193439214,-500.0,0.00041095,18]
[342882792,1732193439224,-1025.1,0.00041095,18]
[342882794,1732193439233,-863.08,0.00041095,18]
[342882796,1732193439242,-500.0,0.00041095,18]
[342882798,1732193439251,-500.0,0.00041095,18]
[342882800,1732193439260,-500.0,0.00041095,18]
[342882802,1732193439270,-526.23,0.00041095,18]
[342882804,1732193439280,-500.0,0.00041095,18]
[342882806,1732193439289,-500.0,0.00041095,18]
[342882808,1732193439298,-500.0,0.00041095,18]
[342882810,1732193439308,-827.93,0.00041095,18]
[342882812,1732193439317,-500.0,0.00041095,18]
[342882814,1732193439326,-500.0,0.00041095,18]
[342882816,1732193439335,-500.0,0.00041095,18]
[342882818,1732193439345,-500.0,0.00041095,18]
[342882821,1732193439357,-500.0,0.00041095,18]
[342882823,1732193439366,-522.43,0.00041095,18]
[342882825,1732193439375,-500.0,0.00041095,18]
[342882827,1732193439384,-1500.29,0.00041095,18]
[342882828,1732193439393,-150.0,0.00041095,18]
[342882830,1732193439403,-500.0,0.00041095,18]
[342882832,1732193439412,-500.0,0.00041095,18]
[342882834,1732193439421,-500.0,0.00041095,18]
[342882836,1732193439430,-853.38,0.00041095,18]
[342882838,1732193439440,-500.0,0.00041095,18]
[342882840,1732193439449,-500.0,0.00041095,18]
[342882842,1732193439459,-500.0,0.00041095,18]
[342882844,1732193439468,-500.0,0.00041095,18]
[342882846,1732193439477,-670.67,0.00041095,18]
[342882848,1732193439486,-500.0,0.00041095,18]
[342882850,1732193439496,-1707.73,0.00041095,18]
[342882852,1732193439505,-500.0,0.00041095,18]
[342882855,1732193439516,-851.64,0.00041095,18]
[342882856,1732193439526,-1631.71,0.00041095,18]
[342882858,1732193439535,-500.0,0.00041095,18]
[342882861,1732193439545,-500.0,0.00041095,18]
[342882862,1732193439554,-500.0,0.00041095,18]
[342882864,1732193439564,-2045.78,0.00041095,18]
[342882867,1732193439574,-604.88,0.00041095,18]
[342882868,1732193439583,-524.06,0.00041095,18]
[342882870,1732193439592,-609.81,0.00041095,18]
[342882873,1732193439604,-500.0,0.00041095,18]
[342882874,1732193439614,-1217.63,0.00041095,18]
[342882876,1732193439623,-625.79,0.00041095,18]
[342882878,1732193439633,-447.03690648,0.00041095,18]
[342882880,1732193439642,-571.29500789,0.00041095,18]
[342882882,1732193439652,-503.49,0.00041095,18]
[342882884,1732193439661,-500.0,0.00041095,18]
[342882887,1732193439671,-500.0,0.00041095,18]
[342882889,1732193439679,-520.42316805,0.00041095,18]
[342882890,1732193439689,-500.0,0.00041095,18]
[342882892,1732193439699,-1276.71,0.00041095,18]
[342882893,1732193439707,-2179.03,0.00041095,18]
[342882894,1732193439716,-500.0,0.00041095,18]
[342882895,1732193439725,-1069.27,0.00041095,18]
[342882896,1732193439734,-500.0,0.00041095,18]
[342882897,1732193439743,-500.0,0.00041095,18]
[342882898,1732193439752,-500.0,0.00041095,18]
[342882899,1732193439761,-982.72,0.00041095,18]
[342882900,1732193439771,-592.04,0.00041095,18]
[342882901,1732193439780,-565.83,0.00041095,18]
[342882902,1732193439789,-500.0,0.00041095,18]
[342882903,1732193439798,-500.0,0.00041095,18]
[342882905,1732193439807,-152.52728504,0.00041095,18]
[342882907,1732193439817,-500.0,0.00041095,18]
[342882909,1732193439826,-500.0,0.00041095,18]
[342882911,1732193439838,-500.0,0.00041095,18]
[342882913,1732193439848,-500.0,0.00041095,18]
[342882915,1732193439860,-500.0,0.00041095,18]
[342882917,1732193439870,-1145.38,0.00041095,18]
[342882919,1732193439879,-500.0,0.00041095,18]
[342882921,1732193439888,-683.41,0.00041095,18]
[342882923,1732193439897,-500.0,0.00041095,18]
[342882925,1732193439907,-500.0,0.00041095,18]
[342882927,1732193439917,-809.06,0.00041095,18]
[342882929,1732193439926,-500.0,0.00041095,18]
[342882931,1732193439935,-500.0,0.00041095,18]
[342882933,1732193439945,-500.0,0.00041095,18]
[342882935,1732193439954,-500.0,0.00041095,18]
[342882937,1732193439963,-871.48,0.00041095,18]
[342882939,1732193439972,-500.0,0.00041095,18]
[342882941,1732193439981,-1807.73,0.00041095,18]
[342882943,1732193439991,-500.0,0.00041095,18]
[342882945,1732193440000,-500.0,0.00041095,18]
[342882947,1732193440009,-535.06,0.00041095,18]
[342882949,1732193440018,-500.0,0.00041095,18]
[342882951,1732193440027,-3487.06,0.00041095,18]
[342882953,1732193440039,-500.0,0.00041095,18]
[342882955,1732193440049,-626.13,0.00041095,18]
[342882957,1732193440058,-500.0,0.00041095,18]
[342882959,1732193440068,-910.29,0.00041095,18]
[342882961,1732193440079,-500.0,0.00041095,18]
[342882963,1732193440089,-161.41548152,0.00041095,18]
[342882965,1732193440098,-625.75,0.00041095,18]
[342882967,1732193440111,-500.0,0.00041095,18]
[342882969,1732193440124,-1035.2,0.00041095,18]
[342882971,1732193440134,-647.8,0.00041095,18]
[342882973,1732193440143,-500.0,0.00041095,18]
[342882975,1732193440153,-500.0,0.00041095,18]
[342882977,1732193440163,-500.0,0.00041095,18]
[342882979,1732193440173,-500.0,0.00041095,18]
[342882981,1732193440183,-500.0,0.00041095,18]
[342882983,1732193440193,-500.0,0.00041095,18]
[342882985,1732193440202,-500.0,0.00041095,18]
[342882987,1732193440212,-500.0,0.00041095,18]
[342882989,1732193440221,-796.66,0.00041095,18]
[342882991,1732193440231,-672.69,0.00041095,18]
[342882993,1732193440241,-500.0,0.00041095,18]
[342882995,1732193440251,-500.0,0.00041095,18]
[342882997,1732193440260,-662.24,0.00041095,18]
[342882999,1732193440271,-749.93,0.00041095,18]
[342883001,1732193440280,-577.22,0.00041095,18]
[342883003,1732193440289,-500.0,0.00041095,18]
[342883004,1732193440299,-500.0,0.00041095,18]
[342883006,1732193440308,-796.31,0.00041095,18]
[342883008,1732193440317,-982.89,0.00041095,18]
[342883010,1732193440327,-500.0,0.00041095,18]
[342883012,1732193440336,-500.0,0.00041095,18]
[342883014,1732193440346,-500.0,0.00041095,18]
[342883016,1732193440358,-928.18,0.00041095,18]
[342883018,1732193440367,-500.0,0.00041095,18]
[342883020,1732193440377,-716.66,0.00041095,18]
[342883022,1732193440387,-502.27992508,0.00041095,18]
[342883024,1732193440396,-500.0,0.00041095,18]
[342883026,1732193440406,-500.0,0.00041095,18]
[342883028,1732193440415,-500.0,0.00041095,18]
[342883030,1732193440425,-500.0,0.00041095,18]
[342883032,1732193440434,-500.0,0.00041095,18]
[342883034,1732193440443,-1599.91,0.00041095,18]
[342883036,1732193440453,-513.36,0.00041095,18]
[342883038,1732193440462,-500.0,0.00041095,18]
[342883040,1732193440471,-500.0,0.00041095,18]
[342883042,1732193440481,-525.37,0.00041095,18]
[342883044,1732193440490,-1042.34,0.00041095,18]
[342883046,1732193440499,-556.05,0.00041095,18]
[342883048,1732193440509,-500.0,0.00041095,18]
[342883050,1732193440518,-500.0,0.00041095,18]
[342883052,1732193440527,-500.0,0.00041095,18]
[342883054,1732193440537,-751.29,0.00041095,120]
[342883056,1732193440546,-500.0,0.00041095,18]
[342883058,1732193440556,-500.0,0.00041095,18]
[342883060,1732193440566,-500.0,0.00041095,18]
[342883062,1732193440576,-500.0,0.00041095,18]
[342883064,1732193440587,-500.0,0.00041095,18]
[342883066,1732193440596,-889.44,0.00041095,18]
[342883068,1732193440610,-500.0,0.00041095,18]
[342883070,1732193440624,-1153.16,0.00041095,18]
[342883072,1732193440633,-500.0,0.00041095,18]
[342883074,1732193440643,-500.0,0.00041095,18]
[342883076,1732193440652,-500.0,0.00041095,18]
[342883078,1732193440662,-500.0,0.00041095,18]
[342883080,1732193440672,-500.0,0.00041095,18]
[342883082,1732193440681,-690.57,0.00041095,18]
[342883084,1732193440691,-500.0,0.00041095,18]
[342883086,1732193440701,-500.0,0.00041095,18]
[342883088,1732193440710,-500.0,0.00041095,18]
[342883090,1732193440720,-500.0,0.00041095,18]
[342883092,1732193440730,-500.0,0.00041095,18]
[342883094,1732193440739,-500.0,0.00041095,18]
[342883096,1732193440750,-752.18,0.00041095,18]
[342883098,1732193440760,-500.0,0.00041095,18]
[342883100,1732193440770,-500.0,0.00041095,18]
[342883102,1732193440779,-1355.88,0.00041095,18]
[342883104,1732193440788,-500.0,0.00041095,18]
[342883106,1732193440798,-500.0,0.00041095,18]
[342883108,1732193440808,-1305.13,0.00041095,18]
[342883110,1732193440817,-890.02,0.00041095,7]
[342883112,1732193440826,-500.0,0.00041095,18]
[342883114,1732193440835,-500.0,0.00041095,18]
[342883116,1732193440845,-578.03754028,0.00041095,18]
[342883118,1732193440860,-2684.63,0.00041095,18]
[342883120,1732193440871,-500.0,0.00041095,18]
[342883122,1732193440881,-500.0,0.00041095,18]
[342883124,1732193440891,-500.0,0.00041095,18]
[342883126,1732193440901,-500.0,0.00041095,18]
[342883128,1732193440910,-781.53,0.00041095,18]
[342883130,1732193440919,-500.0,0.00041095,18]
[342883132,1732193440929,-551.41,0.00041095,18]
[342883134,1732193440939,-500.0,0.00041095,18]
[342883136,1732193440949,-500.0,0.00041095,18]
[342883138,1732193440959,-585.82,0.00041095,18]
[342883140,1732193440968,-1121.83,0.00041095,18]
[342883142,1732193440978,-536.18,0.00041095,18]
[342883144,1732193440987,-710.8,0.00041095,18]
[342883146,1732193440996,-500.0,0.00041095,18]
[342883148,1732193441005,-861.58,0.00041095,18]
[342883150,1732193441014,-2079.25,0.00041095,18]
[342883152,1732193441023,-500.0,0.00041095,18]
[342883154,1732193441033,-500.0,0.00041095,18]
[342883156,1732193441044,-500.0,0.00041095,18]
[342883158,1732193441056,-500.0,0.00041095,18]
[342883160,1732193441066,-500.0,0.00041095,18]
[342883161,1732193441075,-500.0,0.00041095,18]
[342883164,1732193441086,-500.0,0.00041095,18]
[342883166,1732193441095,-500.0,0.00041095,18]
[342883168,1732193441111,-500.0,0.00041095,18]
[342883169,1732193441121,-500.0,0.00041095,18]
[342883171,1732193441132,-583.87,0.00041095,18]
[342883173,1732193441141,-500.0,0.00041095,18]
[342883176,1732193441152,-864.0,0.00041095,18]
[342883178,1732193441161,-500.0,0.00041095,2]
[342883180,1732193441171,-500.0,0.00041095,18]
[342883182,1732193441180,-500.0,0.00041095,18]
[342883184,1732193441190,-500.0,0.00041095,18]
[342883185,1732193441199,-500.0,0.00041095,18]
[342883187,1732193441208,-811.04,0.00041095,18]
[342883190,1732193441218,-500.0,0.00041095,18]
[342883191,1732193441228,-985.19,0.00041095,18]
[342883194,1732193441238,-500.0,0.00041095,18]
[342883195,1732193441247,-500.0,0.00041095,2]
[342883198,1732193441257,-500.0,0.00041095,18]
[342883199,1732193441267,-500.0,0.00041095,18]
[342883201,1732193441277,-500.0,0.00041095,18]
[342883203,1732193441286,-500.33476992,0.00041095,18]
[342883205,1732193441297,-500.0,0.00041095,18]
[342883207,1732193441306,-500.0,0.00041095,18]
[342883209,1732193441316,-500.0,0.00041095,18]
[342883211,1732193441325,-500.0,0.00041095,18]
[342883213,1732193441334,-500.0,0.00041095,18]
[342883215,1732193441343,-879.85,0.00041095,18]
[342883217,1732193441355,-661.33,0.00041095,18]
[342883219,1732193441365,-500.0,0.00041095,18]
[342883221,1732193441374,-500.0,0.00041095,18]
[342883223,1732193441383,-500.0,0.00041095,18]
[342883225,1732193441392,-780.38,0.00041095,18]
[342883227,1732193441402,-500.0,0.00041095,18]
[342883229,1732193441411,-500.0,0.00041095,18]
[342883231,1732193441421,-587.0,0.00041095,18]
[342883233,1732193441431,-500.0,0.00041095,18]
[342883235,1732193441441,-1744.06,0.00041095,18]
[342883237,1732193441453,-1000.0,0.00041095,5]
[342883239,1732193441463,-500.0,0.00041095,18]
[342883241,1732193441472,-500.0,0.00041095,18]
[342883243,1732193441482,-639.27,0.00041095,18]
[342883245,1732193441491,-500.0,0.00041095,18]
[342883246,1732193441499,-500.0,0.00041095,18]
[342883247,1732193441508,-500.0,0.00041095,18]
[342883248,1732193441516,-822.09,0.00041095,18]
[342883249,1732193441525,-1554.77,0.00041095,18]
[342883250,1732193441534,-500.0,0.00041095,18]
[342883251,1732193441542,-500.0,0.00041095,18]
[342883252,1732193441551,-687.6,0.00041095,18]
[342883253,1732193441560,-500.0,0.00041095,18]
[342883254,1732193441569,-672.87,0.00041095,18]
[342883255,1732193441578,-566.90965215,0.00041095,18]
[342883256,1732193441587,-500.0,0.00041095,18]
[342883258,1732193441596,-656.21,0.00041095,18]
[342883260,1732193441608,-500.0,0.00041095,18]
[342883262,1732193441618,-500.0,0.00041095,18]
[342883264,1732193441627,-500.0,0.00041095,18]
[342883266,1732193441636,-500.0,0.00041095,18]
[342883268,1732193441646,-820.87,0.00041095,18]
[342883270,1732193441657,-500.0,0.00041095,18]
[342883272,1732193441666,-500.0,0.00041095,18]
[342883274,1732193441675,-500.0,0.00041095,18]
[342883276,1732193441685,-500.0,0.00041095,18]
[342883302,1732193441927,-2242.03,0.00041095,18]